Workbook

Sheet قائمة المخزون
K2: هل تريد تمييز عناصر لإعادة طلبها؟ | L2: نعم
B3: لإعادة الطلب | C3: مُعرّف المخزون | D3: الاسم | E3: الوصف | F3: سعر الوحدة | G3: كمية المخزون | H3: قيمة المخزون | I3: معدّل إعادة الطلب | J3: توقيت إعادة الطلب بالأيام | K3: كمية إعادة الطلب | L3: هل تم إيقاف هذا العنصر؟
B4: =IFERROR((Inventory_List_Table[[#This Row],[كمية المخزون]]<=Inventory_List_Table[[#This Row],[معدّل إعادة الطلب]])*(Inventory_List_Table[[#This Row],[هل تم إيقاف هذا العنصر؟]]="")*valHighlight,0) -> 1 | C4: IN0001 | D4: عنصر 1 | E4: وصف 1 | F4: ر.س.‏ 51.00 | G4: 25 | H4: =Inventory_List_Table[[#This Row],[سعر الوحدة]]*Inventory_List_Table[[#This Row],[كمية المخزون]] -> ر.س.‏ 1,275.00 | I4: 29 | J4: 13 | K4: 50
B5: =IFERROR((Inventory_List_Table[[#This Row],[كمية المخزون]]<=Inventory_List_Table[[#This Row],[معدّل إعادة الطلب]])*(Inventory_List_Table[[#This Row],[هل تم إيقاف هذا العنصر؟]]="")*valHighlight,0) -> 1 | C5: IN0002 | D5: عنصر 2 | E5: وصف 2 | F5: ر.س.‏ 93.00 | G5: 132 | H5: =Inventory_List_Table[[#This Row],[سعر الوحدة]]*Inventory_List_Table[[#This Row],[كمية المخزون]] -> ر.س.‏ 12,276.00 | I5: 231 | J5: 4 | K5: 50
B6: =IFERROR((Inventory_List_Table[[#This Row],[كمية المخزون]]<=Inventory_List_Table[[#This Row],[معدّل إعادة الطلب]])*(Inventory_List_Table[[#This Row],[هل تم إيقاف هذا العنصر؟]]="")*valHighlight,0) -> 0 | C6: IN0003 | D6: عنصر 3 | E6: وصف 3 | F6: ر.س.‏ 57.00 | G6: 151 | H6: =Inventory_List_Table[[#This Row],[سعر الوحدة]]*Inventory_List_Table[[#This Row],[كمية المخزون]] -> ر.س.‏ 8,607.00 | I6: 114 | J6: 11 | K6: 150
B7: =IFERROR((Inventory_List_Table[[#This Row],[كمية المخزون]]<=Inventory_List_Table[[#This Row],[معدّل إعادة الطلب]])*(Inventory_List_Table[[#This Row],[هل تم إيقاف هذا العنصر؟]]="")*valHighlight,0) -> 0 | C7: IN0004 | D7: عنصر 4 | E7: وصف 4 | F7: ر.س.‏ 19.00 | G7: 186 | H7: =Inventory_List_Table[[#This Row],[سعر الوحدة]]*Inventory_List_Table[[#This Row],[كمية المخزون]] -> ر.س.‏ 3,534.00 | I7: 158 | J7: 6 | K7: 50
B8: =IFERROR((Inventory_List_Table[[#This Row],[كمية المخزون]]<=Inventory_List_Table[[#This Row],[معدّل إعادة الطلب]])*(Inventory_List_Table[[#This Row],[هل تم إيقاف هذا العنصر؟]]="")*valHighlight,0) -> 0 | C8: IN0005 | D8: عنصر 5 | E8: وصف 5 | F8: ر.س.‏ 75.00 | G8: 62 | H8: =Inventory_List_Table[[#This Row],[سعر الوحدة]]*Inventory_List_Table[[#This Row],[كمية المخزون]] -> ر.س.‏ 4,650.00 | I8: 39 | J8: 12 | K8: 50
B9: =IFERROR((Inventory_List_Table[[#This Row],[كمية المخزون]]<=Inventory_List_Table[[#This Row],[معدّل إعادة الطلب]])*(Inventory_List_Table[[#This Row],[هل تم إيقاف هذا العنصر؟]]="")*valHighlight,0) -> 1 | C9: IN0006 | D9: عنصر 6 | E9: وصف 6 | F9: ر.س.‏ 11.00 | G9: 5 | H9: =Inventory_List_Table[[#This Row],[سعر الوحدة]]*Inventory_List_Table[[#This Row],[كمية المخزون]] -> ر.س.‏ 55.00 | I9: 9 | J9: 13 | K9: 150
B10: =IFERROR((Inventory_List_Table[[#This Row],[كمية المخزون]]<=Inventory_List_Table[[#This Row],[معدّل إعادة الطلب]])*(Inventory_List_Table[[#This Row],[هل تم إيقاف هذا العنصر؟]]="")*valHighlight,0) -> 0 | C10: IN0007 | D10: عنصر 7 | E10: وصف 7 | F10: ر.س.‏ 56.00 | G10: 58 | H10: =Inventory_List_Table[[#This Row],[سعر الوحدة]]*Inventory_List_Table[[#This Row],[كمية المخزون]] -> ر.س.‏ 3,248.00 | I10: 109 | J10: 7 | K10: 100 | L10: نعم
B11: =IFERROR((Inventory_List_Table[[#This Row],[كمية المخزون]]<=Inventory_List_Table[[#This Row],[معدّل إعادة الطلب]])*(Inventory_List_Table[[#This Row],[هل تم إيقاف هذا العنصر؟]]="")*valHighlight,0) -> 1 | C11: IN0008 | D11: عنصر 8 | E11: وصف 8 | F11: ر.س.‏ 38.00 | G11: 101 | H11: =Inventory_List_Table[[#This Row],[سعر الوحدة]]*Inventory_List_Table[[#This Row],[كمية المخزون]] -> ر.س.‏ 3,838.00 | I11: 162 | J11: 3 | K11: 100
B12: =IFERROR((Inventory_List_Table[[#This Row],[كمية المخزون]]<=Inventory_List_Table[[#This Row],[معدّل إعادة الطلب]])*(Inventory_List_Table[[#This Row],[هل تم إيقاف هذا العنصر؟]]="")*valHighlight,0) -> 0 | C12: IN0009 | D12: عنصر 9 | E12: وصف 9 | F12: ر.س.‏ 59.00 | G12: 122 | H12: =Inventory_List_Table[[#This Row],[سعر الوحدة]]*Inventory_List_Table[[#This Row],[كمية المخزون]] -> ر.س.‏ 7,198.00 | I12: 82 | J12: 3 | K12: 150
B13: =IFERROR((Inventory_List_Table[[#This Row],[كمية المخزون]]<=Inventory_List_Table[[#This Row],[معدّل إعادة الطلب]])*(Inventory_List_Table[[#This Row],[هل تم إيقاف هذا العنصر؟]]="")*valHighlight,0) -> 1 | C13: IN0010 | D13: عنصر 10 | E13: وصف 10 | F13: ر.س.‏ 50.00 | G13: 175 | H13: =Inventory_List_Table[[#This Row],[سعر الوحدة]]*Inventory_List_Table[[#This Row],[كمية المخزون]] -> ر.س.‏ 8,750.00 | I13: 283 | J13: 8 | K13: 150
B14: =IFERROR((Inventory_List_Table[[#This Row],[كمية المخزون]]<=Inventory_List_Table[[#This Row],[معدّل إعادة الطلب]])*(Inventory_List_Table[[#This Row],[هل تم إيقاف هذا العنصر؟]]="")*valHighlight,0) -> 1 | C14: IN0011 | D14: عنصر 11 | E14: وصف 11 | F14: ر.س.‏ 59.00 | G14: 176 | H14: =Inventory_List_Table[[#This Row],[سعر الوحدة]]*Inventory_List_Table[[#This Row],[كمية المخزون]] -> ر.س.‏ 10,384.00 | I14: 229 | J14: 1 | K14: 100
B15: =IFERROR((Inventory_List_Table[[#This Row],[كمية المخزون]]<=Inventory_List_Table[[#This Row],[معدّل إعادة الطلب]])*(Inventory_List_Table[[#This Row],[هل تم إيقاف هذا العنصر؟]]="")*valHighlight,0) -> 1 | C15: IN0012 | D15: عنصر 12 | E15: وصف 12 | F15: ر.س.‏ 18.00 | G15: 22 | H15: =Inventory_List_Table[[#This Row],[سعر الوحدة]]*Inventory_List_Table[[#This Row],[كمية المخزون]] -> ر.س.‏ 396.00 | I15: 36 | J15: 12 | K15: 50
B16: =IFERROR((Inventory_List_Table[[#This Row],[كمية المخزون]]<=Inventory_List_Table[[#This Row],[معدّل إعادة الطلب]])*(Inventory_List_Table[[#This Row],[هل تم إيقاف هذا العنصر؟]]="")*valHighlight,0) -> 1 | C16: IN0013 | D16: عنصر 13 | E16: وصف 13 | F16: ر.س.‏ 26.00 | G16: 72 | H16: =Inventory_List_Table[[#This Row],[سعر الوحدة]]*Inventory_List_Table[[#This Row],[كمية المخزون]] -> ر.س.‏ 1,872.00 | I16: 102 | J16: 9 | K16: 100
B17: =IFERROR((Inventory_List_Table[[#This Row],[كمية المخزون]]<=Inventory_List_Table[[#This Row],[معدّل إعادة الطلب]])*(Inventory_List_Table[[#This Row],[هل تم إيقاف هذا العنصر؟]]="")*valHighlight,0) -> 1 | C17: IN0014 | D17: عنصر 14 | E17: وصف 14 | F17: ر.س.‏ 42.00 | G17: 62 | H17: =Inventory_List_Table[[#This Row],[سعر الوحدة]]*Inventory_List_Table[[#This Row],[كمية المخزون]] -> ر.س.‏ 2,604.00 | I17: 83 | J17: 2 | K17: 100
B18: =IFERROR((Inventory_List_Table[[#This Row],[كمية المخزون]]<=Inventory_List_Table[[#This Row],[معدّل إعادة الطلب]])*(Inventory_List_Table[[#This Row],[هل تم إيقاف هذا العنصر؟]]="")*valHighlight,0) -> 0 | C18: IN0015 | D18: عنصر 15 | E18: وصف 15 | F18: ر.س.‏ 32.00 | G18: 46 | H18: =Inventory_List_Table[[#This Row],[سعر الوحدة]]*Inventory_List_Table[[#This Row],[كمية المخزون]] -> ر.س.‏ 1,472.00 | I18: 23 | J18: 15 | K18: 50
B19: =IFERROR((Inventory_List_Table[[#This Row],[كمية المخزون]]<=Inventory_List_Table[[#This Row],[معدّل إعادة الطلب]])*(Inventory_List_Table[[#This Row],[هل تم إيقاف هذا العنصر؟]]="")*valHighlight,0) -> 1 | C19: IN0016 | D19: عنصر 16 | E19: وصف 16 | F19: ر.س.‏ 90.00 | G19: 96 | H19: =Inventory_List_Table[[#This Row],[سعر الوحدة]]*Inventory_List_Table[[#This Row],[كمية المخزون]] -> ر.س.‏ 8,640.00 | I19: 180 | J19: 3 | K19: 50
B20: =IFERROR((Inventory_List_Table[[#This Row],[كمية المخزون]]<=Inventory_List_Table[[#This Row],[معدّل إعادة الطلب]])*(Inventory_List_Table[[#This Row],[هل تم إيقاف هذا العنصر؟]]="")*valHighlight,0) -> 0 | C20: IN0017 | D20: عنصر 17 | E20: وصف 17 | F20: ر.س.‏ 97.00 | G20: 57 | H20: =Inventory_List_Table[[#This Row],[سعر الوحدة]]*Inventory_List_Table[[#This Row],[كمية المخزون]] -> ر.س.‏ 5,529.00 | I20: 98 | J20: 12 | K20: 50 | L20: نعم
B21: =IFERROR((Inventory_List_Table[[#This Row],[كمية المخزون]]<=Inventory_List_Table[[#This Row],[معدّل إعادة الطلب]])*(Inventory_List_Table[[#This Row],[هل تم إيقاف هذا العنصر؟]]="")*valHighlight,0) -> 1 | C21: IN0018 | D21: عنصر 18 | E21: وصف 18 | F21: ر.س.‏ 12.00 | G21: 6 | H21: =Inventory_List_Table[[#This Row],[سعر الوحدة]]*Inventory_List_Table[[#This Row],[كمية المخزون]] -> ر.س.‏ 72.00 | I21: 7 | J21: 13 | K21: 50
B22: =IFERROR((Inventory_List_Table[[#This Row],[كمية المخزون]]<=Inventory_List_Table[[#This Row],[معدّل إعادة الطلب]])*(Inventory_List_Table[[#This Row],[هل تم إيقاف هذا العنصر؟]]="")*valHighlight,0) -> 1 | C22: IN0019 | D22: عنصر 19 | E22: وصف 19 | F22: ر.س.‏ 82.00 | G22: 143 | H22: =Inventory_List_Table[[#This Row],[سعر الوحدة]]*Inventory_List_Table[[#This Row],[كمية المخزون]] -> ر.س.‏ 11,726.00 | I22: 164 | J22: 12 | K22: 150
B23: =IFERROR((Inventory_List_Table[[#This Row],[كمية المخزون]]<=Inventory_List_Table[[#This Row],[معدّل إعادة الطلب]])*(Inventory_List_Table[[#This Row],[هل تم إيقاف هذا العنصر؟]]="")*valHighlight,0) -> 0 | C23: IN0020 | D23: عنصر 20 | E23: وصف 20 | F23: ر.س.‏ 16.00 | G23: 124 | H23: =Inventory_List_Table[[#This Row],[سعر الوحدة]]*Inventory_List_Table[[#This Row],[كمية المخزون]] -> ر.س.‏ 1,984.00 | I23: 113 | J23: 14 | K23: 50
B24: =IFERROR((Inventory_List_Table[[#This Row],[كمية المخزون]]<=Inventory_List_Table[[#This Row],[معدّل إعادة الطلب]])*(Inventory_List_Table[[#This Row],[هل تم إيقاف هذا العنصر؟]]="")*valHighlight,0) -> 0 | C24: IN0021 | D24: عنصر 21 | E24: وصف 21 | F24: ر.س.‏ 19.00 | G24: 112 | H24: =Inventory_List_Table[[#This Row],[سعر الوحدة]]*Inventory_List_Table[[#This Row],[كمية المخزون]] -> ر.س.‏ 2,128.00 | I24: 75 | J24: 11 | K24: 50
B25: =IFERROR((Inventory_List_Table[[#This Row],[كمية المخزون]]<=Inventory_List_Table[[#This Row],[معدّل إعادة الطلب]])*(Inventory_List_Table[[#This Row],[هل تم إيقاف هذا العنصر؟]]="")*valHighlight,0) -> 0 | C25: IN0022 | D25: عنصر 22 | E25: وصف 22 | F25: ر.س.‏ 24.00 | G25: 182 | H25: =Inventory_List_Table[[#This Row],[سعر الوحدة]]*Inventory_List_Table[[#This Row],[كمية المخزون]] -> ر.س.‏ 4,368.00 | I25: 132 | J25: 15 | K25: 150
B26: =IFERROR((Inventory_List_Table[[#This Row],[كمية المخزون]]<=Inventory_List_Table[[#This Row],[معدّل إعادة الطلب]])*(Inventory_List_Table[[#This Row],[هل تم إيقاف هذا العنصر؟]]="")*valHighlight,0) -> 0 | C26: IN0023 | D26: عنصر 23 | E26: وصف 23 | F26: ر.س.‏ 29.00 | G26: 106 | H26: =Inventory_List_Table[[#This Row],[سعر الوحدة]]*Inventory_List_Table[[#This Row],[كمية المخزون]] -> ر.س.‏ 3,074.00 | I26: 142 | J26: 1 | K26: 150 | L26: نعم
B27: =IFERROR((Inventory_List_Table[[#This Row],[كمية المخزون]]<=Inventory_List_Table[[#This Row],[معدّل إعادة الطلب]])*(Inventory_List_Table[[#This Row],[هل تم إيقاف هذا العنصر؟]]="")*valHighlight,0) -> 0 | C27: IN0024 | D27: عنصر 24 | E27: وصف 24 | F27: ر.س.‏ 75.00 | G27: 173 | H27: =Inventory_List_Table[[#This Row],[سعر الوحدة]]*Inventory_List_Table[[#This Row],[كمية المخزون]] -> ر.س.‏ 12,975.00 | I27: 127 | J27: 9 | K27: 100
B28: =IFERROR((Inventory_List_Table[[#This Row],[كمية المخزون]]<=Inventory_List_Table[[#This Row],[معدّل إعادة الطلب]])*(Inventory_List_Table[[#This Row],[هل تم إيقاف هذا العنصر؟]]="")*valHighlight,0) -> 0 | C28: IN0025 | D28: عنصر 25 | E28: وصف 25 | F28: ر.س.‏ 14.00 | G28: 28 | H28: =Inventory_List_Table[[#This Row],[سعر الوحدة]]*Inventory_List_Table[[#This Row],[كمية المخزون]] -> ر.س.‏ 392.00 | I28: 21 | J28: 8 | K28: 50
